Cogmind - Beta 16.1 @@@ ROGUE MODE // 2026.02.18 @ 10:53:17 Player: Voldy Result: Destroyed by S-10 Pest with Light Assault Rifle Performance ------------- Evolutions (0) 0 Regions Visited (2) 400 Robots Destroyed (5) 25 Value Destroyed (183) 183 Prototype IDs (2) 40 Alien Tech Used (0) 0 Bonus (0) 0 TOTAL SCORE: 648 Bonus ------- None Cogmind --------- Core Integrity 0/250 Matter 296/300 Energy 250/250 System Corruption 0% Temperature Cool (0) Movement Rolling (100) Location -10/Mines Parts ------- > --- POWER (1) -------- Ion Engine > --- PROPULSION (2) --- Compact Wheel Compact Wheel > --- UTILITY (2) ------ Small Storage Unit Signal Interpreter > --- WEAPON (2) ------- Assault Rifle Light Assault Rifle > --- INVENTORY (8) ---- Light Ion Engine Light Nuclear Core Light Treads Light Treads Heat Sink Medium Laser Datajack Peak State ------------ > --- POWER ------------ Ion Engine > --- PROPULSION ------- Wheel Compact Wheel > --- UTILITY ---------- Small Storage Unit Signal Interpreter > --- WEAPON ----------- Assault Rifle Light Assault Rifle > --- INVENTORY -------- Light Ion Engine Light Nuclear Core Light Treads Light Treads Compact Wheel Heat Sink Medium Laser Datajack [Rating: 8] Favorites ----------- Power Ion Engine Engine Ion Engine Propulsion Compact Wheel Leg Aluminum Leg Wheel Compact Wheel Utility Small Storage Unit Storage Small Storage Unit Processor Signal Interpreter Weapon Assault Rifle Ballistic Gun Assault Rifle Build | -11 -10 -10 ------- Run | Yrd Mat Min Slots Evolved . | . . . Power . | . . . Propulsion . | . . . Utility . | . . . Weapon . | . . . Parts Attached 4 | . 3 1 Power . | . . . Engine . | . . . Core . | . . . Reactor . | . . . Propulsion 3 | . 2 1 Treads . | . . . Leg . | . . . Wheel 3 | . 2 1 Hover . | . . . Flight . | . . . Utility 1 | . 1 . Device . | . . . Storage . | . . . Processor 1 | . 1 . Hackware . | . . . Protection . | . . . Artifact . | . . . Weapon . | . . . Energy Gun . | . . . Energy Cannon . | . . . Ballistic Gun . | . . . Ballistic Cannon . | . . . Launcher . | . . . Special Weapon . | . . . Impact Weapon . | . . . Slashing Weapon . | . . . Piercing Weapon . | . . . Special Melee Weapon . | . . . Unidentified Prototypes . | . . . Parts Lost 1 | . . 1 Power . | . . . Propulsion 1 | . . 1 Utility . | . . . Weapon . | . . . Highest Loss Streak 1 | . . 1 To Critical Strikes . | . . . Average Backups 7 | . 6 7 Power 1 | . 1 2 Propulsion 3 | . 3 2 Utility . | . . 1 Weapon 1 | . 1 1 Tool/Special . | . . . Unused Backups 6 | . 3 3 Power 2 | . 1 1 Propulsion 2 | . 2 . Utility 1 | . . 1 Weapon . | . . . Tool/Special 1 | . . 1 Average Slot Usage (%) 97 | . 97 97 Engine 14 | . 14 14 Leg 2 | . 2 . Wheel 25 | . 25 25 Storage 14 | . 14 14 Processor 12 | . 11 14 Ballistic Gun 28 | . 28 28 Peak Build Rating 8 | . 8 8 Average Rating 7 | . 6 7 On Entrance 6 | 6 6 8 Avg Prop Armor Cover (%) . | . . . Naked Turns . | . . . Heaviest Build 13 | 13 13 13 Greatest Support 32 | 20 26 32 Greatest Overweight (x) . | . . . Average Overweight (x) . | . . . Largest Inventory Capacity 8 | . 8 8 Average Capacity 8 | . 8 8 Most Carried 8 | . 8 8 Average Carried 7 | . 6 7 Final Capacity 8 | 8 8 8 Final Carried 8 | 6 8 7 Class Distribution -------------------- 100% | Mutant Dominant Class ---------------- Mutant | -10/Materials Mutant | -10/Mines Resources | -11 -10 -10 ----------- Run | Yrd Mat Min Matter Collected 355 | 200 106 49 Remotely . | . . . Salvage Created 234 | . 201 33 Parts 12 | . 12 . Haulers Intercepted . | . . . Recyclers Shooed . | . . . Parts Field Recycled . | . . . Retrieved Matter . | . . . Parts Self-Destructed . | . . . Prevented . | . . . Parts Restored . | . . . Kills | -11 -10 -10 ------- Run | Yrd Mat Min Combat Hostiles Destroyed 7 | . 5 2 Guns 7 | . 5 2 Classes Destroyed 2 | . 1 1 Grunt 5 | . 5 . Assembled 2 | . . 2 Best Kill Streak 3 | . 3 1 Combat Bots Only 3 | . 3 1 Max Kills in Single Turn 1 | . 1 1 Gunslinging . | . . . Exploded . | . . . Melee . | . . . Uniques/NPCs Destroyed . | . . . Combat | -11 -10 -10 -------- Run | Yrd Mat Min Hostile Shots Fired 43 | . 26 17 Missed 10 | . 8 2 Hits 33 | . 18 15 Melee 5 | . . 5 Projectile 28 | . 18 10 AOE 1 | . . 1 Damage Taken 493 | . 232 261 Core 252 | . 142 110 Absorbed by Shields . | . . . Core Remaining (%) 100 | 100 . . Volleys Fired 31 | . 19 12 Largest 2 | . 2 2 Hottest 40 | . 40 40 Shots Fired 62 | . 38 24 Gun 62 | . 38 24 Cannon . | . . . Launcher . | . . . Special . | . . . Kinetic 62 | . 38 24 Thermal . | . . . Explosive . | . . . Electromagnetic . | . . . Robot Hit Streak 10 | . 9 10 Robot Miss Streak 2 | . 2 1 Penetration Max . | . . . Secondary Targets . | . . . Shots Hit Robots 45 | . 27 18 Core Hits 22 | . 13 9 Critical Kills 1 | . 1 . Critical Parts Destroyed . | . . . Critical Strikes 1 | . 1 . Destroy 1 | . 1 . Melee Attacks . | . . . Impact . | . . . Slashing . | . . . Piercing . | . . . Sneak Attacks . | . . . Combat Hostiles . | . . . Follow-up Attacks . | . . . Damage Inflicted 464 | . 296 168 Guns 464 | . 296 168 Cannons . | . . . Explosions . | . . . Melee . | . . . Ramming . | . . . Kinetic 464 | . 296 168 Thermal . | . . . Explosive . | . . . Electromagnetic . | . . . Impact . | . . . Slashing . | . . . Piercing . | . . . Highest Corruption . | . . . Average Corruption . | . . . Corruption Purged . | . . . Corruption Blocked . | . . . Overload Shots . | . . . Overflow Damage . | . . . Projectiles . | . . . Explosions . | . . . Melee . | . . . Knockbacks . | . . . Impact . | . . . Kinetic . | . . . Secondary . | . . . Self-Inflicted Damage . | . . . Shots . | . . . Rammed . | . . . Targets Rammed . | . . . Kicked . | . . . Crushed . | . . . Highest Temperature 18 | . 18 . Average Temperature 8 | . 8 . Received Heat Transfer 129 | . 129 . Siege Activations . | . . . Martial Activations . | . . . Shielding Activations . | . . . Robots Disrupted . | . . . Combat Hostiles . | . . . Robots Corrupted . | . . . Combat Hostiles . | . . . Parts Fried . | . . . Impact Corruptions . | . . . Robots Melted . | . . . Combat Hostiles . | . . . Parts Melted . | . . . Heat Transferred . | . . . Parts Sabotaged . | . . . Parts Stolen . | . . . Parts Stripped . | . . . Power Chain Reactions . | . . . Alert | -11 -10 -10 ------- Run | Yrd Mat Min Maximum Alert Level . | . . . Low Security (%) 100 | . 100 100 Level 1 . | . . . Level 2 . | . . . Level 3 . | . . . Level 4 . | . . . Level 5 . | . . . High Security . | . . . Max Security . | . . . Peak Influence 80 | . 80 30 Initial 18 | . . 18 Average 14 | . 18 4 Influence Increases 180 | . 150 30 Destroy 0b10 Robot/C 100 | . 100 . Destroy Leader 20 | . 20 . Lose Combat Pursuer 60 | . 30 30 Influence Decreases 170 | . 102 68 Entered New Map 30 | . . 30 Time Decay 140 | . 102 38 Squads Dispatched 2 | . 2 . Investigation 2 | . 2 . Extermination . | . . . Reinforcement . | . . . Assault . | . . . Garrison . | . . . Intercept . | . . . Searches Triggered . | . . . Construction Impeded . | . . . Haulers Reinforced . | . . . Active Scanning Responses . | . . . Cargo Convoy Interrupts . | . . . Stealth | -11 -10 -10 --------- Run | Yrd Mat Min Distress Signals 1 | . 1 . Communications Jammed . | . . . Distress Signals . | . . . Times Spotted 29 | . 9 20 Peak Tracking Total 10 | . 4 10 Tactical Retreats 2 | . 1 1 Traps | -11 -10 -10 ------- Run | Yrd Mat Min Traps Triggered 1 | . 1 . Indirectly . | . . . Trap Hack Attempts . | . . . Triggered . | . . . Disarmed 1 | . 1 . Reprogrammed . | . . . Reused . | . . . Traps Extracted . | . . . Installed . | . . . Triggered . | . . . Machines | -11 -10 -10 ---------- Run | Yrd Mat Min Machines Disabled . | . . . Max in Single Turn . | . . . Machines Repaired . | . . . Machines Dismantled . | . . . Machines Sabotaged . | . . . Overloaded Fab Kills . | . . . Hacking | -11 -10 -10 --------- Run | Yrd Mat Min Machines Accessed 3 | . 3 . Terminals 3 | . 3 . Fabricators . | . . . Repair Stations . | . . . Recycling Units . | . . . Scanalyzers . | . . . Garrison Access . | . . . Total Hacks 10 | . 10 . Successful 3 | . 3 . Failed 7 | . 7 . Catastrophic 1 | . 1 . Database Lockouts . | . . . Manual 4 | . 4 . Terminals 10 | . 10 . Fabricators . | . . . Repair Stations . | . . . Recycling Units . | . . . Scanalyzers . | . . . Garrison Access . | . . . Terminal Hacks 3 | . 3 . Prototype ID Bank 1 | . 1 . Disarm Traps 1 | . 1 . Registered Components 1 | . 1 . Fabricator Hacks . | . . . Repair Station Hacks . | . . . Recycling Unit Hacks . | . . . Scanalyzer . | . . . Garrison Access Hacks . | . . . Unauthorized Hacks . | . . . Terminals . | . . . Fabricators . | . . . Repair Stations . | . . . Recycling Units . | . . . Scanalyzers . | . . . Garrison Access . | . . . Data Cores Recovered . | . . . Used . | . . . Hacking Detections 3 | . 3 . Full Trace Events 2 | . 2 . Feedback Events . | . . . Feedback Blocked . | . . . Robot Schematics Acquired . | . . . Robots Built . | . . . Authchips . | . . . Time . | . . . Total Robot Build Rating . | . . . Part Schematics Acquired . | . . . Parts Built . | . . . Authchips . | . . . Time . | . . . Total Part Build Rating . | . . . Part Studies Acquired . | . . . Parts Repaired . | . . . Time . | . . . Parts Recycled . | . . . Recycled Matter . | . . . Retrieved Matter . | . . . Retrieved Components . | . . . Parts Scanalyzed . | . . . Part Schematics Acquired . | . . . Parts Damaged . | . . . Bothacking | -11 -10 -10 ------------ Run | Yrd Mat Min Used RIF Installer . | . . . Robots Hacked . | . . . Non-combat . | . . . Combat . | . . . Robot Hacks Applied . | . . . Relay Couplers Released . | . . . Fabnet Peak Effective % . | . . . Robots Rewired . | . . . Allies Hacked . | . . . Hacks Repelled . | . . . Allies | -11 -10 -10 -------- Run | Yrd Mat Min Total Allies 1 | . . 1 Largest Group 1 | . . 1 Highest-Rated Group 31 | . . 31 Highest-Rated Ally 31 | . . 31 Total Orders . | . . . Ally Attacks 19 | . . 19 Total Damage 254 | . . 254 Kills 6 | . . 6 Allies Corrupted . | . . . Allies Melted . | . . . Intel | -11 -10 -10 ------- Run | Yrd Mat Min Active Infowar (turns) . | . . . Robot Analysis Total . | . . . Derelict Logs Recovered 1 | . . 1 Drone Launches . | . . . Drone Recoveries . | . . . Exploration | -11 -10 -10 ------------- Run | Yrd Mat Min Turns Passed 670 | . 464 206 Spaces Moved 375 | 1 208 166 Core . | . . . Treads . | . . . Legs 33 | 1 32 . Wheels 342 | . 176 166 Hover . | . . . Flight . | . . . Fastest Speed 90 | 120 90 90 Average Speed 94 | 120 94 93 Slowest Speed 120 | 120 120 100 Overloaded Moves . | . . . Propulsion Burnouts . | . . . Robots Hopped . | . . . Potential Cave-ins . | . . . Cave-ins Triggered . | . . . Exploration Rate (%) 24 | 2 32 40 Regions Visited 2 Branch Regions 1 Pre-discovered Areas . | . . . Known Exits Taken 1 | . 1 . Unknown Exits Taken 1 | 1 . . Scrap Searched 1 | . . 1 Spaces Dug . | . . . Terrain Destroyed . | . . . Melee . | . . . Projectile . | . . . AOE . | . . . Terrain Rammed . | . . . Walls Destroyed . | . . . Machines Disabled . | . . . Actions | -11 -10 -10 --------- Run | Yrd Mat Min Total 638 | . 442 196 Wait 220 | . 203 17 Move 373 | . 207 166 Hop . | . . . Pick Up 6 | . 6 . Fast Attach . | . . . Attach 4 | . 3 1 Detach 1 | . 1 . Swap . | . . . Drop 3 | . 3 . Fire 31 | . 19 12 Melee . | . . . Ram . | . . . Kick . | . . . Crush . | . . . Escape Stasis . | . . . Rewire . | . . . Trap . | . . . Miscellaneous . | . . . Route ------- -11/Scrapyard -10/Materials -10/Mines (discovered 1 exit: [*Mat]) History --------- Turn | Location | Event 1 | -11/Scrapyard | Discovered new exit (range 0) 1 | -11/Scrapyard | Entered Materials 314 | -10/Materials | Build established: Mutant 388 | -10/Materials | Core integrity fell below 50% 419 | -10/Materials | Discovered new exit (range 16) 464 | -10/Materials | Identified exit to Mines 465 | -10/Materials | Entered Mines 485 | -10/Mines | Assembled infested the area 490 | -10/Mines | Assisted by a Guerilla fighting off Assembled 492 | -10/Mines | Learned 4 Materials zone layouts 518 | -10/Mines | A weapon hastily lodged in a ceiling crevice suddenly fell to the ground 523 | -10/Mines | Met a Derelict testing a Signal Generator 610 | -10/Mines | Core integrity fell below 20% 668 | -10/Mines | Discovered new exit (range 14) 671 | -10/Mines | Destroyed by S-10 Pest with Light Assault Rifle Last Messages --------------- 00577_ Acquired 4 matter. 00583_ Acquired 1 matter. 00585_ Acquired 3 matter. 00589_ as-71438 destroyed. 00592_ PF-I9Z(g) destroyed. 00594_ Acquired 4 matter. 00601_ as-95242 destroyed. 00602_ Acquired 4 matter. 00607_ as-96813 destroyed. 00607_ as-28283 destroyed. 00609_ as-82846 destroyed. 00609_ D-53 Grenadier: "LOCATED POTENTIAL SOURCE OF ANOMALOUS SIGNAL. NEUTRALIZING." 00609_ Wheel destroyed. 00609_ as-40607 destroyed. 00610_ Acquired 3 matter. 00614_ as-35489 destroyed. 00624_ K-01 Serf collects debris. 00651_ Acquired 10 matter. 00668_ EXIT=FOUND Map ----- +----------------------------------------------------+ | | | | | | | ?????????????????????????????????????????????? | | ?????????????????????????????????????????????? | | ????????????????????????????????????????????## | | ??????????????????????????????????????????## | | ???????????????????????????????????????### | | ??????????????????????????????????????## | | ??????????????????????????????????????# | | ?????????????????????????????????????## # | | ????????????????????????????????###### #? | | ???????????????????????????????## ## ### | | ??????????????????????????###### # | | ?????????????????????????## ## ### | | ?????????????????????????# """ | | ????????????????????????## """ % | | ????????????????????????# """ ### | | ????????????????????????# % ##### | | ????????????????????????## ###########??# | | ?????????????????????????## ##???????????## | | ?????????????????????????## #????????????# | | ????????????????????????## ##????????????# | | ?????????????????####??## #?????????????## | | ???????????????### ### ##?????????????## | | ???????????????# @ #??????##??????# | | ??????????????# #?????## ?????? | | ??????????????# #?????# ????? | | ?????????????# k## ##?????# ???? | | ??????????? #?# ##?????## " #??? | | ????????? ??# ##??????# ?# | | ???????? ??? ####????????# ## | | ???????? ??## #??????????## | | ????????? ### ????# s#??????????# % % | | ?????????##???##?????# ???????????# | | ?????????????????????# ?????????# | | ?????????????????????###s?????????# # ## | | ????????????????????????sg??????????## ##?? | | ????????????????????????< ???????????#####???? | | ???????????????????????? ???????????????????? | | ?????????????????????????????????????????????? | | ?????????????????????????????????????????????? | | ?????????????????????????????????????????????? | | ?????????????????????????????????????????????? | | ?????????????????????????????????????????????? | | ?????????????????????????????????????????????? | | ?????????????????????????????????????????????? | | ?????????????????????????????????????????????? | | ?????????????????????????????????????????????? | | ?????????????????????????????????????????????? | +----------------------------------------------------+ Best States ------------- Heat Dissipation 25 Energy Generation 10 Energy Capacity 250 Matter Stores 300 Matter Capacity 300 Sight Range 16 Terrain Scan Density 10 Evasion (%) 55 Item Schematics ----------------- None Robot Schematics ------------------ None Fabricated ------------ Nothing Repaired ---------- Nothing Studied --------- None Alien Tech Used ----------------- None Achievements -------------- None Challenges ------------ None Game ------ Seed ExoskeletonBattleDrillbomb Manual? 0 Play Time 00:06:55 Cumulative 14.8 hours Start 2026.02.18 @ 10:18:04 End 2026.02.18 @ 10:53:17 Sessions 3 Manual Loads 0 Difficulty Rogue Special Mode None Game No. 37 Rogue 28 Adventurer 9 Explorer 0 Win Type - Total 0 Types 0/0/0/0/0/0/0/0/0/0 Lore% 17 Gallery% 18 Achievement% 16 Wizard Run 0 Options --------- Layout 0 ASCII 0 Keyboard 1 Movement Numpad Keybinds 0 Fullscreen 2 Font 18/SmallcapsGlow Map View 76x50 Zoom Use 0% Tactical HUD 1 Map Filters NONE Filters NONE Steam 1 RUN: 669f4867-8257-427b-9171-69f3d86a47b1